[Event "ONJK U25"]
[Site "Enschede, Netherlands"]
[Date "2022.08.11"]
[Round "5.5"]
[White "Van Randtwijk, Mick"]
[Black "Kruimer, Matthias"]
[Result "1-0"]
[TimeControl "90min + 30sec/move"]
[WhiteElo "2057"]
[BlackElo "1766"]

1. e4 {[%clk 01:30:55]} {[%emt 00:00:04]} e5 {[%clk 01:30:56]} {[%emt
00:00:05]} 2. Nf3 {[%clk 01:31:07]} {[%emt 00:00:18]} Nc6 {[%clk 01:31:20]}
{[%emt 00:00:06]} 3. Bb5 {[%clk 01:31:22]} {[%emt 00:00:16]} a6 {[%clk
01:31:42]} {[%emt 00:00:07]} 4. Ba4 {[%clk 01:31:29]} {[%emt 00:00:23]} Nf6
{[%clk 01:31:46]} {[%emt 00:00:26]} 5. d3 {[%clk 01:31:44]} {[%emt 00:00:14]}
b5 {[%clk 01:32:08]} {[%emt 00:00:08]} 6. Bb3 {[%clk 01:32:03]} {[%emt
00:00:12]} Bc5 {[%clk 01:32:31]} {[%emt 00:00:07]} 7. Nc3 {[%clk 01:32:06]}
{[%emt 00:00:27]} d6 {[%clk 01:31:21]} {[%emt 00:01:40]} 8. Bg5 {[%clk
01:31:05]} {[%emt 00:01:31]} h6 {[%clk 01:29:17]} {[%emt 00:02:34]} 9. Bxf6
{[%clk 01:31:03]} {[%emt 00:00:31]} Qxf6 {[%clk 01:29:28]} {[%emt 00:00:19]} 10.
Nd5 {[%clk 01:31:13]} {[%emt 00:00:21]} Qd8 {[%clk 01:29:36]} {[%emt 00:00:22]}
11. c3 {[%clk 01:30:55]} {[%emt 00:00:48]} O-O {[%clk 01:17:42]} {[%emt
00:12:24]} 12. O-O {[%clk 01:30:21]} {[%emt 00:01:03]} Ba7 {[%clk 01:11:28]}
{[%emt 00:06:46]} 13. a4 {[%clk 01:28:46]} {[%emt 00:02:04]} Kh8 {[%clk
01:05:50]} {[%emt 00:06:07]} 14. Ne3 {[%clk 01:17:04]} {[%emt 00:12:13]} Ne7
{[%clk 00:39:52]} {[%emt 00:26:28]} 15. axb5 {[%clk 00:59:34]} {[%emt
00:18:00]} axb5 {[%clk 00:40:07]} {[%emt 00:00:15]} 16. d4 {[%clk 00:59:59]}
{[%emt 00:00:05]} f6 {[%clk 00:34:42]} {[%emt 00:05:56]} 17. Nh4 {[%clk
00:44:42]} {[%emt 00:15:46]} c6 {[%clk 00:32:19]} {[%emt 00:02:53]} 18. Qf3
{[%clk 00:41:39]} {[%emt 00:03:33]} Bd7 {[%clk 00:26:37]} {[%emt 00:06:12]} 19.
Rfd1 {[%clk 00:40:31]} {[%emt 00:01:38]} Qc8 {[%clk 00:25:51]} {[%emt
00:01:16]} 20. h3 {[%clk 00:33:30]} {[%emt 00:07:30]} g5 {[%clk 00:23:08]}
{[%emt 00:03:13]} 21. Qh5 {[%clk 00:33:02]} {[%emt 00:00:59]} Kg7 {[%clk
00:22:44]} {[%emt 00:00:54]} 22. Nf3 {[%clk 00:25:55]} {[%emt 00:07:37]} Ng6
{[%clk 00:16:27]} {[%emt 00:06:47]} 23. Nh2 {[%clk 00:25:54]} {[%emt 00:00:32]}
Nf4 {[%clk 00:16:10]} {[%emt 00:00:46]} 24. Qf3 {[%clk 00:26:19]} {[%emt
00:00:04]} Bb6 {[%clk 00:12:47]} {[%emt 00:03:53]} 25. Rxa8 {[%clk 00:22:49]}
{[%emt 00:04:00]} Qxa8 {[%clk 00:13:16]} {[%emt 00:00:02]} 26. Nhf1 {[%clk
00:22:52]} {[%emt 00:00:27]} exd4 {[%clk 00:07:34]} {[%emt 00:06:12]} 27. cxd4
{[%clk 00:23:17]} {[%emt 00:00:05]} f5 {[%clk 00:07:20]} {[%emt 00:00:44]} 28.
exf5 {[%clk 00:21:59]} {[%emt 00:01:48]} c5 {[%clk 00:05:39]} {[%emt 00:02:11]}
29. Qxa8 {[%clk 00:16:35]} {[%emt 00:05:54]} Rxa8 {[%clk 00:06:05]} {[%emt
00:00:04]} 30. dxc5 {[%clk 00:17:00]} {[%emt 00:00:05]} Bxc5 {[%clk 00:06:06]}
{[%emt 00:00:29]} 31. Kh2 {[%clk 00:16:08]} {[%emt 00:01:22]} Re8 {[%clk
00:05:29]} {[%emt 00:01:07]} 32. g3 {[%clk 00:14:39]} {[%emt 00:01:59]} Ne2
{[%clk 00:05:32]} {[%emt 00:00:27]} 33. Bd5 {[%clk 00:13:33]} {[%emt 00:01:35]}
Nd4 {[%clk 00:04:54]} {[%emt 00:01:08]} 34. b4 {[%clk 00:12:55]} {[%emt
00:01:09]} Bb6 {[%clk 00:04:48]} {[%emt 00:00:36]} 35. g4 {[%clk 00:13:08]}
{[%emt 00:00:17]} Rc8 {[%clk 00:03:05]} {[%emt 00:02:14]} 36. Be4 {[%clk
00:10:12]} {[%emt 00:03:26]} Bc6 {[%clk 00:02:29]} {[%emt 00:01:06]} 37. Ng3
{[%clk 00:07:27]} {[%emt 00:03:14]} Bxe4 {[%clk 00:01:14]} {[%emt 00:01:45]} 38.
Nxe4 {[%clk 00:07:53]} {[%emt 00:00:04]} Rc6 {[%clk 00:01:33]} {[%emt
00:00:11]} 39. Nd5 {[%clk 00:07:32]} {[%emt 00:00:52]} Nc2 {[%clk 00:01:29]}
{[%emt 00:00:34]} 40. Nxb6 {[%clk 00:07:37]} {[%emt 00:00:24]} Rxb6 {[%clk
00:01:02]} {[%emt 00:00:58]} 41. Rxd6 {[%clk 00:08:03]} {[%emt 00:00:03]} Rb7
{[%clk 00:01:15]} {[%emt 00:00:18]} 42. Rg6+ {[%clk 00:08:04]} {[%emt
00:00:29]} Kf8 {[%clk 00:01:06]} {[%emt 00:00:38]} 43. Nc5 {[%clk 00:06:27]}
{[%emt 00:02:07]} Ra7 {[%clk 00:00:46]} {[%emt 00:00:50]} 44. Ne6+ {[%clk
00:06:46]} {[%emt 00:00:11]} Ke8 {[%clk 00:00:36]} {[%emt 00:00:40]} 45. Rg8+
{[%clk 00:07:12]} {[%emt 00:00:04]} 1-0

[Event "ONJK U25"]
[Site "Enschede, Netherlands"]
[Date "2022.08.11"]
[Round "5.6"]
[White "Andringa, Jibbe"]
[Black "Yee, Fong You"]
[Result "1/2-1/2"]
[TimeControl "90min + 30sec/move"]
[WhiteElo "1000"]
[BlackElo "981"]

1. d4 {[%clk 01:30:58]} {[%emt 00:00:01]} d5 {[%clk 01:30:20]} {[%emt
00:00:41]} 2. Bf4 {[%clk 01:31:21]} {[%emt 00:00:06]} g6 {[%clk 01:29:49]}
{[%emt 00:01:01]} 3. Nf3 {[%clk 01:31:33]} {[%emt 00:00:18]} Bg7 {[%clk
01:29:05]} {[%emt 00:01:15]} 4. e3 {[%clk 01:31:45]} {[%emt 00:00:18]} Nc6
{[%clk 01:25:43]} {[%emt 00:03:52]} 5. c4 {[%clk 01:31:51]} {[%emt 00:00:24]}
e6 {[%clk 01:23:03]} {[%emt 00:03:10]} 6. Nc3 {[%clk 01:31:44]} {[%emt
00:00:37]} Nge7 {[%clk 01:19:43]} {[%emt 00:03:49]} 7. Bd3 {[%clk 01:30:10]}
{[%emt 00:02:04]} a6 {[%clk 01:19:23]} {[%emt 00:00:51]} 8. O-O {[%clk
01:29:25]} {[%emt 00:01:14]} O-O {[%clk 01:19:46]} {[%emt 00:00:07]} 9. Ne5
{[%clk 01:28:10]} {[%emt 00:01:46]} f6 {[%clk 01:13:04]} {[%emt 00:07:12]} 10.
Nxc6 {[%clk 01:24:04]} {[%emt 00:04:35]} bxc6 {[%clk 01:10:00]} {[%emt
00:03:34]} 11. Rc1 {[%clk 01:23:02]} {[%emt 00:01:32]} g5 {[%clk 01:07:30]}
{[%emt 00:03:00]} 12. Bg3 {[%clk 01:22:37]} {[%emt 00:00:54]} f5 {[%clk
01:04:00]} {[%emt 00:04:02]} 13. Be5 {[%clk 01:21:07]} {[%emt 00:02:00]} Bf6
{[%clk 01:00:53]} {[%emt 00:03:37]} 14. Qh5 {[%clk 01:18:55]} {[%emt 00:02:43]}
Ng6 {[%clk 01:01:06]} {[%emt 00:00:17]} 15. Bxf6 {[%clk 01:18:16]} {[%emt
00:01:07]} Qxf6 {[%clk 01:00:29]} {[%emt 00:01:08]} 16. cxd5 {[%clk 01:16:17]}
{[%emt 00:02:29]} cxd5 {[%clk 00:56:52]} {[%emt 00:04:08]} 17. Na4 {[%clk
01:14:51]} {[%emt 00:01:56]} Rb8 {[%clk 00:54:06]} {[%emt 00:03:16]} 18. Rxc7
{[%clk 01:14:35]} {[%emt 00:00:45]} Rf7 {[%clk 00:53:26]} {[%emt 00:01:08]} 19.
Rfc1 {[%clk 01:13:54]} {[%emt 00:01:13]} Bd7 {[%clk 00:53:15]} {[%emt
00:00:42]} 20. Nc5 {[%clk 01:11:54]} {[%emt 00:02:30]} Nf8 {[%clk 00:50:58]}
{[%emt 00:02:47]} 21. Nxd7 {[%clk 01:10:20]} {[%emt 00:02:03]} Rxd7 {[%clk
00:49:09]} {[%emt 00:02:20]} 22. Rxd7 {[%clk 01:09:56]} {[%emt 00:00:52]} Nxd7
{[%clk 00:49:27]} {[%emt 00:00:14]} 23. g4 {[%clk 01:09:35]} {[%emt 00:00:50]}
h6 {[%clk 00:48:36]} {[%emt 00:01:21]} 24. gxf5 {[%clk 01:03:16]} {[%emt
00:06:48]} Rxb2 {[%clk 00:48:23]} {[%emt 00:00:44]} 25. Rc2 {[%clk 01:02:20]}
{[%emt 00:01:26]} Rxc2 {[%clk 00:44:35]} {[%emt 00:04:18]} 26. Bxc2 {[%clk
01:02:46]} {[%emt 00:00:03]} exf5 {[%clk 00:44:55]} {[%emt 00:00:11]} 27. Bb3
{[%clk 01:01:15]} {[%emt 00:02:02]} Qe6 {[%clk 00:43:15]} {[%emt 00:02:10]} 28.
Qf3 {[%clk 00:58:40]} {[%emt 00:03:05]} Nf6 {[%clk 00:43:30]} {[%emt 00:00:15]}
29. Qg2 {[%clk 00:58:09]} {[%emt 00:01:01]} Kg7 {[%clk 00:43:27]} {[%emt
00:00:33]} 30. h4 {[%clk 00:57:28]} {[%emt 00:01:10]} g4 {[%clk 00:42:59]}
{[%emt 00:00:59]} 31. f3 {[%clk 00:56:16]} {[%emt 00:01:42]} Qxe3+ {[%clk
00:41:23]} {[%emt 00:02:05]} 32. Qf2 {[%clk 00:53:37]} {[%emt 00:03:08]} Qf4
{[%clk 00:39:19]} {[%emt 00:02:35]} 33. fxg4 {[%clk 00:52:26]} {[%emt
00:01:41]} Qxg4+ {[%clk 00:39:23]} {[%emt 00:00:26]} 34. Qg2 {[%clk 00:52:28]}
{[%emt 00:00:28]} Qxg2+ {[%clk 00:39:43]} {[%emt 00:00:10]} 35. Kxg2 {[%clk
00:52:51]} {[%emt 00:00:06]} Kg6 {[%clk 00:40:04]} {[%emt 00:00:10]} 36. Kg3
{[%clk 00:52:34]} {[%emt 00:00:47]} Ne4+ {[%clk 00:39:01]} {[%emt 00:01:34]} 37.
Kf4 {[%clk 00:51:53]} {[%emt 00:01:10]} Nc3 {[%clk 00:38:12]} {[%emt 00:01:20]}
38. Bc2 {[%clk 00:51:45]} {[%emt 00:00:38]} Nxa2 {[%clk 00:37:04]} {[%emt
00:01:37]} 39. Bxf5+ {[%clk 00:52:03]} {[%emt 00:00:12]} Kf6 {[%clk 00:35:01]}
{[%emt 00:02:33]} 40. Bc8 {[%clk 00:50:44]} {[%emt 00:01:49]} a5 {[%clk
00:34:47]} {[%emt 00:00:44]} 41. Kg4 {[%clk 00:50:30]} {[%emt 00:00:44]} a4
{[%clk 00:33:38]} {[%emt 00:01:40]} 42. Bf5 {[%clk 00:50:26]} {[%emt 00:00:33]}
a3 {[%clk 00:33:42]} {[%emt 00:00:27]} 43. Bc2 {[%clk 00:50:46]} {[%emt
00:00:09]} Nc3 {[%clk 00:33:57]} {[%emt 00:00:15]} 44. Bb3 {[%clk 00:51:06]}
{[%emt 00:00:10]} a2 {[%clk 00:34:04]} {[%emt 00:00:23]} 45. Bxa2 {[%clk
00:51:32]} {[%emt 00:00:04]} Nxa2 {[%clk 00:34:26]} {[%emt 00:00:08]} 46. Kh5
{[%clk 00:51:49]} {[%emt 00:00:13]} Kg7 {[%clk 00:34:44]} {[%emt 00:00:13]} 47.
Kg4 {[%clk 00:51:53]} {[%emt 00:00:26]} Nc1 {[%clk 00:34:45]} {[%emt 00:00:28]}
48. Kf5 {[%clk 00:52:11]} {[%emt 00:00:12]} Nb3 {[%clk 00:34:49]} {[%emt
00:00:27]} 49. Ke5 {[%clk 00:52:35]} {[%emt 00:00:07]} Kg6 {[%clk 00:34:46]}
{[%emt 00:00:32]} 50. Kxd5 {[%clk 00:52:42]} {[%emt 00:00:22]} Nxd4 {[%clk
00:34:54]} {[%emt 00:00:21]} 51. Kxd4 {[%clk 00:53:07]} {[%emt 00:00:05]}
1/2-1/2

[Event "ONJK U25"]
[Site "Enschede, Netherlands"]
[Date "2022.08.12"]
[Round "6.1"]
[White "Van Randtwijk, Mick"]
[Black "Baselmans, Luuk"]
[Result "0-1"]
[TimeControl "90min + 30sec/move"]
[WhiteElo "2057"]
[BlackElo "2256"]

1. e4 {[%clk 01:30:55]} {[%emt 00:00:04]} e6 {[%clk 01:30:52]} {[%emt
00:00:09]} 2. d4 {[%clk 01:31:06]} {[%emt 00:00:18]} d5 {[%clk 01:31:16]}
{[%emt 00:00:06]} 3. Nc3 {[%clk 01:31:18]} {[%emt 00:00:18]} Nf6 {[%clk
01:31:25]} {[%emt 00:00:21]} 4. Bg5 {[%clk 01:31:23]} {[%emt 00:00:26]} Be7
{[%clk 01:31:48]} {[%emt 00:00:06]} 5. e5 {[%clk 01:31:16]} {[%emt 00:00:38]}
Nfd7 {[%clk 01:32:11]} {[%emt 00:00:07]} 6. h4 {[%clk 01:31:24]} {[%emt
00:00:21]} h6 {[%clk 01:32:18]} {[%emt 00:00:22]} 7. Bxe7 {[%clk 01:30:50]}
{[%emt 00:01:05]} Qxe7 {[%clk 01:32:41]} {[%emt 00:00:07]} 8. Qd2 {[%clk
01:30:47]} {[%emt 00:00:34]} a6 {[%clk 01:32:38]} {[%emt 00:00:33]} 9. Nce2
{[%clk 01:30:46]} {[%emt 00:00:30]} c5 {[%clk 01:31:50]} {[%emt 00:01:18]} 10.
c3 {[%clk 01:30:56]} {[%emt 00:00:21]} Nc6 {[%clk 01:31:52]} {[%emt 00:00:28]}
11. Nf3 {[%clk 01:30:38]} {[%emt 00:00:48]} b5 {[%clk 01:30:35]} {[%emt
00:01:47]} 12. Nf4 {[%clk 01:30:31]} {[%emt 00:00:37]} Bb7 {[%clk 01:29:29]}
{[%emt 00:01:35]} 13. Bd3 {[%clk 01:27:32]} {[%emt 00:03:28]} Nb6 {[%clk
01:27:00]} {[%emt 00:03:00]} 14. Nh5 {[%clk 01:23:57]} {[%emt 00:04:05]} O-O-O
{[%clk 01:23:48]} {[%emt 00:03:42]} 15. Rh3 {[%clk 01:21:17]} {[%emt 00:03:10]}
Nc4 {[%clk 01:17:54]} {[%emt 00:06:23]} 16. Bxc4 {[%clk 01:07:46]} {[%emt
00:14:02]} dxc4 {[%clk 01:18:17]} {[%emt 00:00:06]} 17. Nxg7 {[%clk 01:08:12]}
{[%emt 00:00:04]} cxd4 {[%clk 01:16:19]} {[%emt 00:02:28]} 18. cxd4 {[%clk
01:06:22]} {[%emt 00:02:20]} Nb4 {[%clk 01:14:32]} {[%emt 00:02:17]} 19. Qc3
{[%clk 01:04:00]} {[%emt 00:02:52]} Rhg8 {[%clk 01:11:01]} {[%emt 00:04:01]} 20.
Nh5 {[%clk 00:58:58]} {[%emt 00:05:33]} Rxg2 {[%clk 01:03:31]} {[%emt
00:07:59]} 21. Nf6 {[%clk 00:56:51]} {[%emt 00:02:38]} Nd3+ {[%clk 01:02:13]}
{[%emt 00:01:47]} 22. Kd2 {[%clk 00:54:28]} {[%emt 00:02:53]} Nxf2 {[%clk
01:00:46]} {[%emt 00:01:58]} 0-1

[Event "ONJK U25"]
[Site "Enschede, Netherlands"]
[Date "2022.08.12"]
[Round "6.2"]
[White "Merkon, Oseb"]
[Black "Nijdam, Brian"]
[Result "1/2-1/2"]
[TimeControl "90min + 30sec/move"]
[WhiteElo "1954"]
[BlackElo "1749"]

1. c4 {[%clk 01:30:58]} {[%emt 00:00:01]} e5 {[%clk 01:30:54]} {[%emt
00:00:06]} 2. Nc3 {[%clk 01:31:26]} {[%emt 00:00:03]} Nf6 {[%clk 01:31:19]}
{[%emt 00:00:05]} 3. e4 {[%clk 01:31:36]} {[%emt 00:00:20]} Bb4 {[%clk
01:28:38]} {[%emt 00:03:11]} 4. Nd5 {[%clk 01:24:34]} {[%emt 00:07:32]} a5
{[%clk 01:27:51]} {[%emt 00:01:16]} 5. a3 {[%clk 01:23:47]} {[%emt 00:01:18]}
Bc5 {[%clk 01:27:55]} {[%emt 00:00:26]} 6. d3 {[%clk 01:23:07]} {[%emt
00:01:10]} c6 {[%clk 01:27:10]} {[%emt 00:01:14]} 7. Ne3 {[%clk 01:19:26]}
{[%emt 00:04:11]} d5 {[%clk 01:24:40]} {[%emt 00:03:01]} 8. Qc2 {[%clk
01:12:42]} {[%emt 00:07:14]} O-O {[%clk 01:06:53]} {[%emt 00:18:17]} 9. cxd5
{[%clk 01:09:31]} {[%emt 00:03:41]} Bxe3 {[%clk 01:07:03]} {[%emt 00:00:20]} 10.
Bxe3 {[%clk 01:07:35]} {[%emt 00:02:26]} cxd5 {[%clk 01:07:20]} {[%emt
00:00:12]} 11. Bg5 {[%clk 01:04:36]} {[%emt 00:03:29]} Be6 {[%clk 01:04:32]}
{[%emt 00:03:18]} 12. Nf3 {[%clk 01:04:24]} {[%emt 00:00:42]} Nc6 {[%clk
01:04:29]} {[%emt 00:00:32]} 13. Be2 {[%clk 00:48:48]} {[%emt 00:16:07]} Rc8
{[%clk 01:04:30]} {[%emt 00:00:29]} 14. Qd2 {[%clk 00:46:23]} {[%emt 00:02:55]}
dxe4 {[%clk 01:01:44]} {[%emt 00:03:16]} 15. dxe4 {[%clk 00:45:33]} {[%emt
00:01:19]} Nxe4 {[%clk 00:55:31]} {[%emt 00:06:43]} 16. Qxd8 {[%clk 00:37:10]}
{[%emt 00:08:54]} Nxd8 {[%clk 00:55:22]} {[%emt 00:00:39]} 17. Bd3 {[%clk
00:32:37]} {[%emt 00:05:03]} Nc5 {[%clk 00:53:34]} {[%emt 00:02:18]} 18. Bb5
{[%clk 00:32:41]} {[%emt 00:00:26]} f6 {[%clk 00:52:10]} {[%emt 00:01:53]} 19.
Be3 {[%clk 00:31:37]} {[%emt 00:01:34]} Nf7 {[%clk 00:45:15]} {[%emt 00:07:25]}
20. b4 {[%clk 00:30:49]} {[%emt 00:01:19]} axb4 {[%clk 00:44:57]} {[%emt
00:00:48]} 21. axb4 {[%clk 00:31:13]} {[%emt 00:00:06]} Ne4 {[%clk 00:44:25]}
{[%emt 00:01:02]} 22. O-O {[%clk 00:26:23]} {[%emt 00:05:20]} Nfd6 {[%clk
00:39:42]} {[%emt 00:05:12]} 23. Bd3 {[%clk 00:25:47]} {[%emt 00:01:06]} Bc4
{[%clk 00:34:43]} {[%emt 00:05:30]} 24. Rfd1 {[%clk 00:22:09]} {[%emt
00:04:07]} Bxd3 {[%clk 00:32:04]} {[%emt 00:03:10]} 25. Rxd3 {[%clk 00:22:28]}
{[%emt 00:00:11]} Nc4 {[%clk 00:31:37]} {[%emt 00:00:55]} 26. h3 {[%clk
00:16:13]} {[%emt 00:06:47]} Rfd8 {[%clk 00:26:27]} {[%emt 00:05:40]} 27. Rad1
{[%clk 00:16:02]} {[%emt 00:00:40]} Ned6 {[%clk 00:24:12]} {[%emt 00:02:45]} 28.
Rd5 {[%clk 00:11:59]} {[%emt 00:04:34]} Nf7 {[%clk 00:22:53]} {[%emt 00:01:48]}
29. Rxd8+ {[%clk 00:09:16]} {[%emt 00:03:13]} Rxd8 {[%clk 00:23:18]} {[%emt
00:00:05]} 30. Rc1 {[%clk 00:09:35]} {[%emt 00:00:12]} b5 {[%clk 00:17:57]}
{[%emt 00:05:51]} 31. Kf1 {[%clk 00:08:13]} {[%emt 00:01:52]} Nfd6 {[%clk
00:16:33]} {[%emt 00:01:52]} 32. Ke2 {[%clk 00:06:36]} {[%emt 00:02:08]} Nxe3
{[%clk 00:16:19]} {[%emt 00:00:44]} 33. fxe3 {[%clk 00:06:12]} {[%emt
00:00:54]} Nc4 {[%clk 00:08:47]} {[%emt 00:07:59]} 34. Ra1 {[%clk 00:06:15]}
{[%emt 00:00:30]} Rd7 {[%clk 00:08:24]} {[%emt 00:00:54]} 1/2-1/2

[Event "ONJK U25"]
[Site "Enschede, Netherlands"]
[Date "2022.08.12"]
[Round "6.3"]
[White "Boudry, William"]
[Black "Gesthuizen, Ward"]
[Result "1-0"]
[TimeControl "90min + 30sec/move"]
[WhiteElo "2115"]
[BlackElo "1600"]

1. e4 {[%clk 01:30:23]} {[%emt 00:00:36]} c6 {[%clk 01:30:49]} {[%emt
00:00:12]} 2. Nf3 {[%clk 01:30:18]} {[%emt 00:00:35]} d5 {[%clk 01:30:57]}
{[%emt 00:00:22]} 3. d3 {[%clk 01:30:07]} {[%emt 00:00:41]} dxe4 {[%clk
01:29:51]} {[%emt 00:01:37]} 4. dxe4 {[%clk 01:29:47]} {[%emt 00:00:49]} Qxd1+
{[%clk 01:29:35]} {[%emt 00:00:45]} 5. Kxd1 {[%clk 01:30:14]} {[%emt 00:00:03]}
Bg4 {[%clk 01:29:18]} {[%emt 00:00:48]} 6. Be2 {[%clk 01:30:40]} {[%emt
00:00:04]} Nd7 {[%clk 01:27:21]} {[%emt 00:02:27]} 7. Ne1 {[%clk 01:30:49]}
{[%emt 00:00:21]} Bxe2+ {[%clk 01:25:01]} {[%emt 00:02:50]} 8. Kxe2 {[%clk
01:31:11]} {[%emt 00:00:08]} e5 {[%clk 01:24:02]} {[%emt 00:01:29]} 9. Nd3
{[%clk 01:31:36]} {[%emt 00:00:05]} h6 {[%clk 01:22:48]} {[%emt 00:01:44]} 10.
Be3 {[%clk 01:31:21]} {[%emt 00:00:45]} Ngf6 {[%clk 01:22:24]} {[%emt
00:00:54]} 11. f3 {[%clk 01:31:39]} {[%emt 00:00:12]} Bd6 {[%clk 01:18:36]}
{[%emt 00:04:18]} 12. Nd2 {[%clk 01:31:35]} {[%emt 00:00:34]} O-O-O {[%clk
01:17:11]} {[%emt 00:01:55]} 13. a4 {[%clk 01:29:10]} {[%emt 00:02:55]} Kb8
{[%clk 01:13:53]} {[%emt 00:03:47]} 14. Nc4 {[%clk 01:27:43]} {[%emt 00:01:58]}
Bc7 {[%clk 01:13:14]} {[%emt 00:01:09]} 15. a5 {[%clk 01:27:45]} {[%emt
00:00:28]} b5 {[%clk 01:06:54]} {[%emt 00:06:50]} 16. Nd2 {[%clk 01:24:40]}
{[%emt 00:03:34]} a6 {[%clk 01:04:53]} {[%emt 00:02:32]} 17. Nb3 {[%clk
01:24:20]} {[%emt 00:00:50]} Bd6 {[%clk 01:03:05]} {[%emt 00:02:18]} 18. Rhd1
{[%clk 01:24:09]} {[%emt 00:00:40]} Rc8 {[%clk 00:57:02]} {[%emt 00:06:34]} 19.
Bc5 {[%clk 01:23:01]} {[%emt 00:01:38]} Kc7 {[%clk 00:48:39]} {[%emt 00:08:52]}
20. Nb4 {[%clk 01:10:05]} {[%emt 00:13:26]} Nxc5 {[%clk 00:45:45]} {[%emt
00:03:24]} 21. Nxc5 {[%clk 01:10:12]} {[%emt 00:00:23]} Rcd8 {[%clk 00:40:29]}
{[%emt 00:05:46]} 22. Nbxa6+ {[%clk 01:07:44]} {[%emt 00:02:59]} Kc8 {[%clk
00:40:15]} {[%emt 00:00:44]} 23. b4 {[%clk 01:07:12]} {[%emt 00:01:02]} g5
{[%clk 00:36:18]} {[%emt 00:04:27]} 24. Ra3 {[%clk 01:04:29]} {[%emt 00:03:13]}
Nh5 {[%clk 00:31:07]} {[%emt 00:05:41]} 25. g3 {[%clk 01:04:27]} {[%emt
00:00:31]} g4 {[%clk 00:27:03]} {[%emt 00:04:35]} 26. Rad3 {[%clk 01:03:24]}
{[%emt 00:01:33]} Be7 {[%clk 00:24:08]} {[%emt 00:03:25]} 27. Rd7 {[%clk
01:03:42]} {[%emt 00:00:12]} gxf3+ {[%clk 00:22:37]} {[%emt 00:02:01]} 28. Kxf3
{[%emt 00:01:26]} Rxd7 {[%clk 00:21:46]} 29. Rxd7 {[%clk 01:04:27]} Bg5 {[%clk
00:17:19]} {[%emt 00:05:06]} 30. Ra7 {[%clk 01:03:53]} {[%emt 00:01:05]} Rh7
{[%clk 00:17:07]} {[%emt 00:00:42]} 31. Ra8# {[%clk 01:04:17]} {[%emt
00:00:05]} 1-0